[Event "European Womens-ch 2025"]
[Site "Rhodes"]
[Date "2025.04.05"]
[Round "6.57"]
[White "Berke, Ana"]
[Black "Valkova, Angelika"]
[Result "1/2-1/2"]
[Annotator "NA"]
[ECO "C07"]
[WhiteElo "2119"]
[BlackElo "2001"]
[PlyCount "112"]
[EventDate "2025.03.29"]
[EventType "swiss"]
[EventCountry "GRE"]
[SourceTitle "playchess.com"]
[Source "ChessBase"]
[SourceQuality "1"]
[TimeControl "40/5400+30:1800+30"]

1. e4 {[%emt 0:00:02]} e6 {[%emt 0:00:06]} 2. d4 {[%emt 0:00:05]} d5 {[%emt 0:00:04]} 3. Nd2 {[%emt 0:00:06]} c5 {[%emt 0:00:05]} 4. Ngf3 {[%emt 0:00:03]} cxd4 {[%emt 0:00:08]} 5. Nxd4 {[%emt 0:00:34]} Nc6 {[%emt 0:00:05]} 6. Bb5 {[%emt 0:00:26]} Bd7 {[%emt 0:00:05]} 7. Nxc6 {[%emt 0:00:06]} bxc6 {[%emt 0:00:05]} 8. Bd3 {[%emt 0:00:07]} Bd6 {[%emt 0:00:06]} 9. Qe2 {[%emt 0:01:40]} Qc7 {[%emt 0:05:04]} 10. Nf3 {[%emt 0:00:56]} f6 {[%emt 0:03:47]} 11. exd5 {[%emt 0:10:32]} cxd5 {[%emt 0:00:16]} 12. Nd4 {[%emt 0:01:43]} Bb4+ {[%emt 0:03:37]} 13. Bd2 {[%emt 0:07:19]} Bxd2+ {[%emt 0:00:20]} 14. Qxd2 {[%emt 0:00:37]} Qe5+ {[%emt 0:07:38]} 15. Be2 {[%emt 0:03:45]} Ne7 {[%emt 0:05:06]} 16. O-O {[%emt 0:00:53]} O-O {[%emt 0:03:13]} 17. Rfe1 {[%emt 0:01:34]} Qd6 {[%emt 0:03:40]} 18. Nb5 {[%emt 0:02:32]} Bxb5 {[%emt 0:13:21]} 19. Bxb5 {[%emt 0:00:07]} Rab8 {[%emt 0:03:19]} 20. Qe2 {[%emt 0:02:51]} e5 {[%emt 0:03:20]} 21. Rad1 {[%emt 0:04:36]} Qb4 {[%emt 0:10:43]} 22. c4 {[%emt 0:03:19]} Nf5 {[%emt 0:04:04]} 23. a3 {[%emt 0:13:10]} Qa5 {[%emt 0:01:23]} 24. Rxd5 {[%emt 0:04:37]} Nd4 {[%emt 0:00:30]} 25. Qf1 {[%emt 0:01:39]} Rfd8 {[%emt 0:00:57]} 26. Bc6 {[%emt 0:11:03]} Rxd5 {[%emt 0:05:32]} 27. Bxd5+ {[%emt 0:00:40]} Kf8 {[%emt 0:01:10]} 28. b4 {[%emt 0:03:23]} Qxa3 {[%emt 0:00:39]} 29. b5 {[%emt 0:00:49]} Qc5 {[%emt 0:08:58]} 30. Qd3 {[%emt 0:01:52]} g6 {[%emt 0:01:38]} 31. h4 {[%emt 0:00:48]} Rd8 {[%emt 0:01:09]} 32. Rd1 {[%emt 0:01:21]} Kg7 {[%emt 0:02:25]} 33. h5 {[%emt 0:00:35]} Nf5 {[%emt 0:01:00]} 34. Qh3 {[%emt 0:03:28]} Rd6 {[%emt 0:01:52]} 35. Ra1 {[%emt 0:02:30]} Ne7 {[%emt 0:03:43]} 36. h6+ {[%emt 0:02:23]} Kf8 {[%emt 0:00:10]} 37. Qf3 {[%emt 0:15:27]} f5 {[%emt 0:06:26]} 38. Qe2 {[%emt 0:00:30]} Qd4 {[%emt 0:03:46]} 39. Rd1 {[%emt 0:00:20]} Qc3 {[%emt 0:00:00]} 40. Rd3 {[%emt 0:00:00]} Qa1+ {[%emt 0:00:00]} 41. Rd1 {[%emt 0:01:26]} Qc3 {[%emt 0:00:00]} 42. Qa2 {[%emt 0:07:26]} Nxd5 {[%emt 0:08:22]} 43. cxd5 {[%emt 0:03:18]} Qc5 {[%emt 0:02:01]} 44. g3 {[%emt 0:01:10]} Kf7 {[%emt 0:04:21]} 45. Qb3 {[%emt 0:00:44]} Kf6 {[%emt 0:03:07]} 46. Qa4 {[%emt 0:01:54]} g5 {[%emt 0:01:33]} 47. g4 {[%emt 0:01:27]} Kg6 {[%emt 0:02:18]} 48. Kg2 {[%emt 0:00:53]} Kxh6 {[%emt 0:01:17]} 49. Qa1 {[%emt 0:01:01]} Qc4 {[%emt 0:01:40]} 50. Rh1+ {[%emt 0:02:21]} Kg6 {[%emt 0:00:06]} 51. gxf5+ {[%emt 0:09:23]} Kxf5 {[%emt 0:00:05]} 52. Qb1+ {[%emt 0:03:31]} Qe4+ {[%emt 0:02:50]} 53. Qxe4+ {[%emt 0:00:24]} Kxe4 {[%emt 0:00:04]} 54. Rxh7 {[%emt 0:00:12]} Rxd5 {[%emt 0:00:05]} 55. Rxa7 {[%emt 0:00:29]} Rxb5 {[%emt 0:00:07]} 56. Rf7 {[%emt 0:00:10]} Rb3 {[%emt 0:01:35]} 1/2-1/2

[Event "European Womens-ch 2025"]
[Site "Rhodes"]
[Date "2025.04.05"]
[Round "6.58"]
[White "Tsetskhladze, Mariam"]
[Black "Alexandri, Vasiliki"]
[Result "1/2-1/2"]
[Annotator "NA"]
[ECO "B13"]
[WhiteElo "2105"]
[BlackElo "1927"]
[PlyCount "65"]
[EventDate "2025.03.29"]
[EventType "swiss"]
[EventCountry "GRE"]
[SourceTitle "playchess.com"]
[Source "ChessBase"]
[SourceQuality "1"]
[TimeControl "40/5400+30:1800+30"]

1. e4 {[%emt 0:00:05]} c6 {[%emt 0:00:06]} 2. d4 {[%emt 0:00:32]} d5 {[%emt 0:00:06]} 3. exd5 {[%emt 0:00:11]} cxd5 {[%emt 0:00:06]} 4. Bd3 {[%emt 0:00:08]} Nc6 {[%emt 0:00:14]} 5. c3 {[%emt 0:00:04]} Nf6 {[%emt 0:00:10]} 6. Nf3 {[%emt 0:03:54]} Bg4 {[%emt 0:03:56]} 7. Qb3 {[%emt 0:04:43]} Qc7 {[%emt 0:05:39]} 8. Be2 {[%emt 0:23:46]} e6 {[%emt 0:03:28]} 9. O-O {[%emt 0:03:52]} Bd6 {[%emt 0:02:27]} 10. h3 {[%emt 0:00:32]} Bh5 {[%emt 0:01:48]} 11. Re1 {[%emt 0:01:55]} O-O {[%emt 0:03:25]} 12. Nbd2 {[%emt 0:03:33]} Rab8 {[%emt 0:02:01]} 13. Qd1 {[%emt 0:02:29]} b5 {[%emt 0:06:47]} 14. b3 {[%emt 0:04:07]} Rfc8 {[%emt 0:08:25]} 15. Bb2 {[%emt 0:01:52]} Qb6 {[%emt 0:14:54]} 16. Rc1 {[%emt 0:12:23]} a5 {[%emt 0:04:13]} 17. Ne5 {[%emt 0:09:03]} Bxe2 {[%emt 0:02:12]} 18. Qxe2 {[%emt 0:00:04]} a4 {[%emt 0:03:49]} 19. Ndf3 {[%emt 0:02:49]} Bxe5 {[%emt 0:04:29]} 20. Nxe5 {[%emt 0:01:32]} Nxe5 {[%emt 0:00:52]} 21. Qxe5 {[%emt 0:00:47]} axb3 {[%emt 0:03:11]} 22. axb3 {[%emt 0:00:15]} Ra8 {[%emt 0:01:19]} 23. Ra1 {[%emt 0:02:54]} Ne4 {[%emt 0:03:54]} 24. Qf4 {[%emt 0:01:09]} Qb7 {[%emt 0:04:24]} 25. Qe3 {[%emt 0:02:09]} Qc6 {[%emt 0:03:57]} 26. Rac1 {[%emt 0:08:55]} Ra2 {[%emt 0:02:39]} 27. Re2 {[%emt 0:01:55]} Qa6 {[%emt 0:02:13]} 28. Qd3 {[%emt 0:01:45]} Qa5 {[%emt 0:06:00]} 29. Rcc2 {[%emt 0:03:07]} Nd6 {[%emt 0:02:18]} 30. Qg3 {[%emt 0:01:18]} Ne4 {[%emt 0:01:15]} 31. Qd3 {[%emt 0:00:23]} Nd6 {[%emt 0:03:20]} 32. Qg3 {[%emt 0:00:29]} Ne4 {[%emt 0:01:36]} 33. Qd3 {[%emt 0:00:35]} 1/2-1/2

[Event "European Womens-ch 2025"]
[Site "Rhodes"]
[Date "2025.04.05"]
[Round "6.59"]
[White "Acarbay, Algi"]
[Black "Golsta, Ramona"]
[Result "0-1"]
[Annotator "NA"]
[ECO "B31"]
[WhiteElo "2052"]
[BlackElo "1943"]
[PlyCount "86"]
[EventDate "2025.03.29"]
[EventType "swiss"]
[EventCountry "GRE"]
[SourceTitle "playchess.com"]
[Source "ChessBase"]
[SourceQuality "1"]
[TimeControl "40/5400+30:1800+30"]

1. e4 {[%emt 0:00:03]} c5 {[%emt 0:00:05]} 2. a4 {[%emt 0:00:16]} Nc6 {[%emt 0:00:55]} 3. Bb5 d6 4. Bxc6+ {[%emt 0:01:12]} bxc6 {[%emt 0:00:34]} 5. f4 {[%emt 0:00:48]} Nf6 {[%emt 0:13:56]} 6. d3 {[%emt 0:07:13]} g6 {[%emt 0:01:35]} 7. Nf3 {[%emt 0:03:02]} Bg7 {[%emt 0:00:33]} 8. O-O {[%emt 0:00:55]} O-O {[%emt 0:00:21]} 9. Nbd2 {[%emt 0:10:37]} Rb8 {[%emt 0:02:03]} 10. Rb1 {[%emt 0:02:07]} Ba6 {[%emt 0:05:02]} 11. b3 {[%emt 0:01:08]} Nd7 {[%emt 0:03:01]} 12. Qe2 {[%emt 0:12:20]} d5 {[%emt 0:10:48]} 13. e5 {[%emt 0:08:24]} e6 {[%emt 0:06:58]} 14. Ba3 {[%emt 0:01:06]} Qc7 {[%emt 0:01:01]} 15. Rbe1 {[%emt 0:08:56]} Rfe8 {[%emt 0:03:07]} 16. Kh1 {[%emt 0:02:16]} Bf8 {[%emt 0:04:36]} 17. Bc1 {[%emt 0:01:45]} Rb4 {[%emt 0:07:06]} 18. c4 {[%emt 0:01:41]} Qd8 {[%emt 0:07:03]} 19. Ba3 {[%emt 0:01:04]} Rb7 {[%emt 0:01:57]} 20. Qf2 {[%emt 0:02:36]} Qe7 {[%emt 0:07:03]} 21. g4 {[%emt 0:04:54]} Reb8 {[%emt 0:00:59]} 22. Rb1 {[%emt 0:00:36]} Bg7 {[%emt 0:08:24]} 23. g5 {[%emt 0:00:17]} Bf8 {[%emt 0:03:23]} 24. h4 {[%emt 0:03:18]} Qd8 {[%emt 0:01:25]} 25. Nh2 {[%emt 0:01:16]} Qa5 {[%emt 0:01:57]} 26. Rfc1 {[%emt 0:00:40]} Nb6 {[%emt 0:02:19]} 27. Ng4 {[%emt 0:09:46]} Nd7 {[%emt 0:04:19]} 28. h5 {[%emt 0:03:34]} Bg7 {[%emt 0:00:38]} 29. Nf6+ {[%emt 0:00:21]} Nxf6 {[%emt 0:01:18]} 30. gxf6 {[%emt 0:00:33]} Bf8 {[%emt 0:00:14]} 31. Qe2 {[%emt 0:04:22]} Qc7 {[%emt 0:00:47]} 32. Rg1 {[%emt 0:00:25]} Qd7 {[%emt 0:01:21]} 33. Bb2 {[%emt 0:02:48]} Rxb3 {[%emt 0:00:24]} 34. Nxb3 {[%emt 0:00:15]} Rxb3 {[%emt 0:00:04]} 35. Qc2 {[%emt 0:00:17]} dxc4 {[%emt 0:01:35]} 36. hxg6 {[%emt 0:03:39]} Qd5+ {[%emt 0:00:04]} 37. Qg2 {[%emt 0:01:40]} fxg6 {[%emt 0:00:04]} 38. Qxd5 {[%emt 0:01:21]} cxd5 {[%emt 0:00:09]} 39. dxc4 {[%emt 0:00:42]} Bxc4 {[%emt 0:00:07]} 40. Kg2 {[%emt 0:00:00]} Bd3 {[%emt 0:00:00]} 41. Kf2 {[%emt 0:32:47]} Bxb1 {[%emt 0:00:44]} 42. Rxb1 {[%emt 0:00:00]} c4 {[%emt 0:02:57]} 43. f5 {[%emt 0:00:00]} Kf7 {[%emt 0:00:30]} 0-1

[Event "European Womens-ch 2025"]
[Site "Rhodes"]
[Date "2025.04.05"]
[Round "6.60"]
[White "Zvereva, Marija"]
[Black "Kalyva, Kyriaki"]
[Result "1/2-1/2"]
[Annotator "NA"]
[ECO "B30"]
[WhiteElo "2033"]
[BlackElo "1885"]
[PlyCount "174"]
[EventDate "2025.03.29"]
[EventType "swiss"]
[EventCountry "GRE"]
[SourceTitle "playchess.com"]
[Source "ChessBase"]
[SourceQuality "1"]
[TimeControl "40/5400+30:1800+30"]

1. e4 {[%emt 0:02:10]} c5 {[%emt 0:00:05]} 2. Nf3 {[%emt 0:00:03]} Nc6 {[%emt 0:00:04]} 3. Bb5 {[%emt 0:00:04]} e6 {[%emt 0:00:06]} 4. Bxc6 {[%emt 0:03:45]} bxc6 {[%emt 0:00:06]} 5. O-O {[%emt 0:00:30]} Ne7 {[%emt 0:00:40]} 6. Nc3 {[%emt 0:01:14]} Ng6 {[%emt 0:01:57]} 7. e5 {[%emt 0:01:10]} Be7 {[%emt 0:06:55]} 8. Ne4 {[%emt 0:04:14]} O-O {[%emt 0:01:54]} 9. d4 {[%emt 0:01:52]} Ba6 {[%emt 0:06:53]} 10. Re1 {[%emt 0:00:47]} cxd4 {[%emt 0:02:47]} 11. Qxd4 {[%emt 0:00:15]} Qb6 {[%emt 0:14:40]} 12. Rd1 {[%emt 0:19:13]} Be2 {[%emt 0:09:28]} 13. Qxb6 {[%emt 0:09:24]} axb6 {[%emt 0:00:06]} 14. Rxd7 {[%emt 0:00:26]} Rad8 {[%emt 0:00:38]} 15. Rxd8 {[%emt 0:00:19]} Rxd8 {[%emt 0:00:05]} 16. Be3 {[%emt 0:15:24]} Bxf3 {[%emt 0:01:15]} 17. gxf3 {[%emt 0:00:03]} Nxe5 {[%emt 0:00:12]} 18. Bxb6 {[%emt 0:01:12]} Rb8 {[%emt 0:01:02]} 19. Bc7 {[%emt 0:01:37]} Nxf3+ {[%emt 0:00:07]} 20. Kg2 {[%emt 0:00:13]} Nh4+ {[%emt 0:04:41]} 21. Kf1 {[%emt 0:06:14]} Rb7 {[%emt 0:00:46]} 22. Be5 {[%emt 0:00:43]} Nf3 {[%emt 0:01:56]} 23. Bc3 {[%emt 0:00:11]} f5 {[%emt 0:03:42]} 24. Ng3 {[%emt 0:01:10]} Bf6 {[%emt 0:04:56]} 25. Bxf6 {[%emt 0:03:51]} gxf6 {[%emt 0:00:05]} 26. b3 {[%emt 0:00:26]} Kf7 {[%emt 0:01:32]} 27. h3 {[%emt 0:00:50]} Ke7 {[%emt 0:03:27]} 28. Ke2 {[%emt 0:00:27]} Nd4+ {[%emt 0:00:35]} 29. Kd3 {[%emt 0:00:15]} Rd7 {[%emt 0:04:54]} 30. Kc3 {[%emt 0:00:53]} Nb5+ {[%emt 0:06:18]} 31. Kb4 {[%emt 0:06:07]} f4 {[%emt 0:05:17]} 32. Nf1 {[%emt 0:03:13]} Nd4 {[%emt 0:00:44]} 33. Kc3 {[%emt 0:00:47]} Kd8 {[%emt 0:01:24]} 34. a4 {[%emt 0:00:23]} Kc7 {[%emt 0:00:06]} 35. b4 {[%emt 0:01:31]} Kb6 {[%emt 0:01:51]} 36. Kb2 {[%emt 0:01:31]} Nf3 {[%emt 0:02:39]} 37. Ra3 {[%emt 0:01:41]} Ne5 {[%emt 0:00:11]} 38. Kc1 {[%emt 0:01:24]} Rg7 {[%emt 0:01:15]} 39. Kd1 {[%emt 0:12:08]} Rd7+ {[%emt 0:04:04]} 40. Ke1 {[%emt 0:00:00]} Rd4 {[%emt 0:00:00]} 41. Rb3 {[%emt 0:06:27]} Nc4 {[%emt 0:04:24]} 42. Ke2 {[%emt 0:04:23]} Rd5 {[%emt 0:05:26]} 43. Rc3 {[%emt 0:03:50]} Rd4 {[%emt 0:02:49]} 44. f3 {[%emt 0:04:24]} h5 {[%emt 0:05:35]} 45. Rd3 {[%emt 0:01:30]} Rxd3 {[%emt 0:09:08]} 46. Kxd3 {[%emt 0:00:06]} Nb2+ {[%emt 0:00:42]} 47. Kc3 {[%emt 0:00:17]} Nd1+ {[%emt 0:00:21]} 48. Kc4 {[%emt 0:01:39]} e5 {[%emt 0:02:18]} 49. a5+ {[%emt 0:00:57]} Kb7 {[%emt 0:00:12]} 50. Kc5 {[%emt 0:00:17]} Ne3 {[%emt 0:00:58]} 51. Nd2 {[%emt 0:00:15]} Nxc2 {[%emt 0:02:18]} 52. Ne4 {[%emt 0:01:55]} Nd4 {[%emt 0:00:38]} 53. Nxf6 {[%emt 0:09:00]} Nxf3 {[%emt 0:00:06]} 54. Kd6 {[%emt 0:01:26]} Nd2 {[%emt 0:03:59]} 55. Kxe5 {[%emt 0:00:55]} f3 {[%emt 0:00:15]} 56. Nxh5 {[%emt 0:00:16]} c5 {[%emt 0:03:08]} 57. bxc5 {[%emt 0:00:13]} Nc4+ {[%emt 0:01:45]} 58. Kd5 {[%emt 0:00:41]} Nxa5 {[%emt 0:00:30]} 59. Ng3 {[%emt 0:00:11]} Kc7 {[%emt 0:00:38]} 60. h4 {[%emt 0:00:15]} Kd7 {[%emt 0:00:26]} 61. h5 {[%emt 0:04:23]} Nc6 {[%emt 0:01:25]} 62. h6 {[%emt 0:00:00]} Ne7+ {[%emt 0:01:03]} 63. Ke5 {[%emt 0:00:00]} Ng6+ {[%emt 0:00:23]} 64. Kf6 {[%emt 0:00:00]} Nf8 {[%emt 0:00:11]} 65. Kf7 {[%emt 0:00:00]} Nh7 {[%emt 0:00:11]} 66. Kg7 {[%emt 0:00:00]} Ng5 {[%emt 0:05:18]} 67. Kg6 {[%emt 0:00:10]} Ne6 {[%emt 0:00:00]} 68. Kf6 {[%emt 0:00:32]} Nf8 {[%emt 0:00:00]} 69. Ne4 {[%emt 0:00:44]} Kc6 {[%emt 0:00:00]} 70. Kg7 {[%emt 0:01:46]} Ne6+ {[%emt 0:00:00]} 71. Kg8 {[%emt 0:00:25]} Ng5 {[%emt 0:00:00]} 72. Nxg5 {[%emt 0:00:48]} f2 {[%emt 0:00:00]} 73. h7 {[%emt 0:00:13]} f1=Q {[%emt 0:03:30]} 74. h8=Q {[%emt 0:00:07]} Qc4+ {[%emt 0:00:00]} 75. Nf7 {[%emt 0:00:12]} Kxc5 {[%emt 0:00:00]} 76. Qf6 {[%emt 0:00:43]} Qg4+ {[%emt 0:00:00]} 77. Ng5 {[%emt 0:00:22]} Qc8+ {[%emt 0:00:00]} 78. Kg7 {[%emt 0:00:27]} Qb7+ {[%emt 0:00:00]} 79. Kg6 {[%emt 0:00:23]} Qb1+ {[%emt 0:00:00]} 80. Kg7 {[%emt 0:00:51]} Qb7+ {[%emt 0:00:00]} 81. Nf7 {[%emt 0:00:18]} Qg2+ {[%emt 0:00:00]} 82. Kf8 {[%emt 0:00:17]} Qa8+ {[%emt 0:00:00]} 83. Nd8 {[%emt 0:00:21]} Qe4 {[%emt 0:00:00]} 84. Ne6+ {[%emt 0:00:37]} Kc4 {[%emt 0:00:00]} 85. Qf1+ {[%emt 0:00:39]} Kd5 {[%emt 0:00:00]} 86. Nc7+ {[%emt 0:00:30]} Kc6 {[%emt 0:00:00]} 87. Qc1+ {[%emt 0:00:15]} Kd7 {[%emt 0:00:35]} 1/2-1/2

[Event "European Womens-ch 2025"]
[Site "Rhodes"]
[Date "2025.04.05"]
[Round "6.61"]
[White "Bhatia, Kanishka"]
[Black "Hariharan, Shambavi"]
[Result "1-0"]
[Annotator "NA"]
[ECO "D35"]
[WhiteElo "2012"]
[BlackElo "2024"]
[PlyCount "69"]
[EventDate "2025.03.29"]
[EventType "swiss"]
[EventCountry "GRE"]
[SourceTitle "playchess.com"]
[Source "ChessBase"]
[SourceQuality "1"]
[TimeControl "40/5400+30:1800+30"]

1. d4 {[%emt 0:00:03]} d5 {[%emt 0:00:06]} 2. c4 {[%emt 0:00:30]} e6 {[%emt 0:00:09]} 3. Nc3 {[%emt 0:00:14]} Nf6 {[%emt 0:00:04]} 4. Bg5 {[%emt 0:00:08]} Bb4 {[%emt 0:00:18]} 5. cxd5 {[%emt 0:00:20]} exd5 {[%emt 0:00:05]} 6. e3 {[%emt 0:00:17]} h6 {[%emt 0:00:30]} 7. Bh4 {[%emt 0:00:15]} g5 {[%emt 0:00:15]} 8. Bg3 {[%emt 0:00:05]} Ne4 {[%emt 0:00:23]} 9. Qc2 {[%emt 0:01:14]} h5 {[%emt 0:00:51]} 10. f3 {[%emt 0:04:41]} Nxg3 {[%emt 0:00:56]} 11. hxg3 {[%emt 0:00:02]} Qe7 {[%emt 0:00:42]} 12. Kf2 {[%emt 0:06:50]} Bxc3 {[%emt 0:03:38]} 13. bxc3 {[%emt 0:01:45]} c5 {[%emt 0:03:27]} 14. Re1 {[%emt 0:03:15]} Be6 {[%emt 0:03:20]} 15. e4 {[%emt 0:00:54]} Qd6 {[%emt 0:06:49]} 16. c4 {[%emt 0:04:37]} dxc4 {[%emt 0:15:37]} 17. d5 {[%emt 0:00:17]} Bd7 {[%emt 0:01:16]} 18. Qc3 {[%emt 0:02:53]} Rh6 {[%emt 0:04:17]} 19. Bxc4 {[%emt 0:01:34]} b5 {[%emt 0:08:24]} 20. e5 {[%emt 0:01:07]} Qa6 {[%emt 0:02:03]} 21. e6 {[%emt 0:02:41]} Bxe6 {[%emt 0:05:14]} 22. Qg7 {[%emt 0:04:47]} Rg6 {[%emt 0:04:18]} 23. Rxe6+ {[%emt 0:00:39]} fxe6 {[%emt 0:02:35]} 24. Qxg6+ {[%emt 0:00:19]} Kd8 {[%emt 0:01:06]} 25. Qg8+ {[%emt 0:00:36]} Kc7 {[%emt 0:00:24]} 26. Qf7+ {[%emt 0:01:11]} Nd7 {[%emt 0:00:43]} 27. dxe6 {[%emt 0:00:08]} bxc4 {[%emt 0:00:07]} 28. Qxd7+ {[%emt 0:00:05]} Kb6 {[%emt 0:00:10]} 29. Qd6+ {[%emt 0:00:53]} Kb5 {[%emt 0:00:09]} 30. Qxa6+ {[%emt 0:00:12]} Kxa6 {[%emt 0:00:04]} 31. f4 {[%emt 0:00:13]} gxf4 {[%emt 0:00:11]} 32. gxf4 {[%emt 0:00:06]} Rf8 {[%emt 0:00:06]} 33. Kf3 {[%emt 0:00:20]} Rf6 {[%emt 0:00:07]} 34. Rxh5 {[%emt 0:00:08]} Rxe6 {[%emt 0:00:05]} 35. Rxc5 {[%emt 0:00:09]} 1-0

[Event "European Womens-ch 2025"]
[Site "Rhodes"]
[Date "2025.04.05"]
[Round "6.62"]
[White "Subramanian, Anusha"]
[Black "Bania, Eleni"]
[Result "1-0"]
[Annotator "NA"]
[ECO "B40"]
[WhiteElo "2026"]
[BlackElo "1809"]
[PlyCount "105"]
[EventDate "2025.03.29"]
[EventType "swiss"]
[EventCountry "GRE"]
[SourceTitle "playchess.com"]
[Source "ChessBase"]
[SourceQuality "1"]
[TimeControl "40/5400+30:1800+30"]

1. e4 {[%emt 0:00:03]} c5 {[%emt 0:00:04]} 2. Nf3 {[%emt 0:00:04]} e6 {[%emt 0:00:05]} 3. g3 {[%emt 0:00:04]} d5 {[%emt 0:04:16]} 4. exd5 {[%emt 0:00:10]} exd5 {[%emt 0:00:14]} 5. Bg2 {[%emt 0:00:09]} Nf6 {[%emt 0:00:30]} 6. O-O {[%emt 0:00:15]} Be7 {[%emt 0:00:13]} 7. d4 {[%emt 0:00:15]} c4 {[%emt 0:07:53]} 8. b3 {[%emt 0:04:02]} cxb3 {[%emt 0:04:18]} 9. axb3 {[%emt 0:00:43]} O-O {[%emt 0:01:00]} 10. Ne5 {[%emt 0:01:56]} Nc6 {[%emt 0:02:04]} 11. Bb2 {[%emt 0:02:38]} Bf5 {[%emt 0:06:59]} 12. Nd2 {[%emt 0:06:24]} a6 {[%emt 0:11:54]} 13. Ndf3 {[%emt 0:10:40]} Rc8 {[%emt 0:02:30]} 14. c3 {[%emt 0:06:05]} h6 {[%emt 0:03:03]} 15. Re1 {[%emt 0:03:35]} Re8 {[%emt 0:02:34]} 16. Nh4 {[%emt 0:03:43]} Bh7 {[%emt 0:01:09]} 17. Bh3 {[%emt 0:01:43]} Rc7 {[%emt 0:06:56]} 18. Bf5 {[%emt 0:04:21]} Bd6 {[%emt 0:06:17]} 19. f4 {[%emt 0:05:43]} Bxf5 {[%emt 0:06:15]} 20. Nxf5 {[%emt 0:00:18]} Ne7 {[%emt 0:03:09]} 21. Ne3 {[%emt 0:06:25]} Ne4 {[%emt 0:02:37]} 22. c4 {[%emt 0:06:22]} Bb4 {[%emt 0:02:49]} 23. Rf1 {[%emt 0:02:55]} f6 {[%emt 0:08:48]} 24. Nf3 {[%emt 0:01:25]} Qd7 {[%emt 0:02:30]} 25. Qd3 {[%emt 0:03:21]} f5 {[%emt 0:02:40]} 26. Ne5 {[%emt 0:01:00]} Qe6 {[%emt 0:00:21]} 27. c5 {[%emt 0:03:03]} g6 {[%emt 0:03:13]} 28. Nc2 {[%emt 0:02:12]} a5 {[%emt 0:01:47]} 29. Nxb4 {[%emt 0:00:57]} axb4 {[%emt 0:00:02]} 30. Ra4 {[%emt 0:01:44]} Nc6 {[%emt 0:01:02]} 31. Re1 {[%emt 0:01:51]} Kg7 {[%emt 0:00:58]} 32. Qb5 {[%emt 0:03:25]} Nd2 {[%emt 0:01:46]} 33. Qd3 {[%emt 0:01:36]} Ne4 {[%emt 0:00:06]} 34. Qe2 {[%emt 0:02:30]} Rb8 {[%emt 0:00:42]} 35. Nc4 {[%emt 0:02:12]} Qf6 {[%emt 0:02:43]} 36. Ne5 {[%emt 0:02:11]} Qe6 {[%emt 0:00:46]} 37. Kh1 {[%emt 0:01:31]} Kh7 {[%emt 0:00:10]} 38. Kg2 {[%emt 0:01:25]} Re7 {[%emt 0:01:12]} 39. h3 {[%emt 0:02:31]} Qf6 {[%emt 0:02:23]} 40. h4 {[%emt 0:00:00]} Qe6 {[%emt 0:00:00]} 41. Rf1 {[%emt 0:09:21]} Rg7 {[%emt 0:09:30]} 42. Raa1 {[%emt 0:03:50]} Re7 {[%emt 0:03:43]} 43. Rf3 {[%emt 0:01:29]} Ree8 {[%emt 0:01:22]} 44. Qb5 {[%emt 0:05:00]} Rg8 {[%emt 0:04:09]} 45. Re3 {[%emt 0:03:18]} Rge8 {[%emt 0:00:53]} 46. Ra4 {[%emt 0:04:14]} Rg8 {[%emt 0:08:40]} 47. Qb6 {[%emt 0:01:09]} Qc8 {[%emt 0:01:39]} 48. Re1 {[%emt 0:03:13]} Rg7 {[%emt 0:00:45]} 49. Nd3 {[%emt 0:01:30]} Nd2 {[%emt 0:02:46]} 50. Nxb4 {[%emt 0:00:44]} Qg8 {[%emt 0:01:48]} 51. Nd3 {[%emt 0:01:53]} Ne4 {[%emt 0:01:17]} 52. Ne5 {[%emt 0:00:38]} Qc8 {[%emt 0:01:05]} 53. b4 {[%emt 0:09:14]} 1-0

[Event "European Womens-ch 2025"]
[Site "Rhodes"]
[Date "2025.04.05"]
[Round "6.63"]
[White "Recica, Jona"]
[Black "Karadas, Hena"]
[Result "1-0"]
[Annotator "NA"]
[ECO "B33"]
[WhiteElo "1716"]
[BlackElo "1931"]
[PlyCount "83"]
[EventDate "2025.03.29"]
[EventType "swiss"]
[EventCountry "GRE"]
[SourceTitle "playchess.com"]
[Source "ChessBase"]
[SourceQuality "1"]
[TimeControl "40/5400+30:1800+30"]

1. e4 {[%emt 0:00:03]} c5 {[%emt 0:00:07]} 2. Nf3 {[%emt 0:00:07]} Nc6 {[%emt 0:00:27]} 3. d4 {[%emt 0:00:44]} cxd4 {[%emt 0:00:10]} 4. Nxd4 {[%emt 0:00:05]} Nf6 {[%emt 1:31:46]} 5. Nc3 {[%emt 0:00:03]} e5 {[%emt 0:00:00]} 6. Ndb5 {[%emt 0:00:57]} d6 {[%emt 0:00:00]} 7. Bg5 {[%emt 0:00:54]} a6 {[%emt 0:00:00]} 8. Na3 {[%emt 0:00:08]} b5 {[%emt 0:00:00]} 9. Nd5 {[%emt 0:00:19]} Be7 {[%emt 0:02:30]} 10. Bxf6 {[%emt 0:01:45]} Bxf6 {[%emt 0:00:00]} 11. c3 {[%emt 0:00:13]} Ne7 {[%emt 0:00:00]} 12. Nxf6+ {[%emt 0:02:04]} gxf6 {[%emt 0:00:00]} 13. Qe2 {[%emt 0:03:18]} Bb7 {[%emt 0:00:00]} 14. h4 {[%emt 0:01:49]} h5 {[%emt 0:00:00]} 15. O-O-O {[%emt 0:05:27]} Qc7 {[%emt 0:00:00]} 16. Kb1 {[%emt 0:03:33]} O-O-O {[%emt 0:00:00]} 17. Rc1 {[%emt 0:02:17]} Kb8 {[%emt 0:00:00]} 18. f3 {[%emt 0:02:06]} f5 {[%emt 0:00:00]} 19. exf5 {[%emt 0:07:45]} Nxf5 {[%emt 0:05:00]} 20. Qf2 {[%emt 1:06:53]} d5 {[%emt 0:00:00]} 21. Nc2 {[%emt 0:00:30]} Nd6 {[%emt 0:00:00]} 22. Be2 {[%emt 0:00:00]} f5 {[%emt 0:00:00]} 23. Rhe1 {[%emt 0:00:00]} f4 {[%emt 0:00:00]} 24. g3 {[%emt 0:00:00]} Rhf8 {[%emt 0:00:00]} 25. Rcd1 {[%emt 0:00:00]} Ka8 {[%emt 0:00:00]} 26. Bf1 {[%emt 0:00:00]} Nc8 {[%emt 0:00:00]} 27. gxf4 {[%emt 0:00:00]} Rxf4 {[%emt 0:00:00]} 28. Qg3 {[%emt 0:00:00]} Rdf8 {[%emt 0:00:00]} 29. Bg2 {[%emt 0:00:00]} Nb6 {[%emt 0:00:00]} 30. Nb4 {[%emt 0:00:00]} Qh7+ {[%emt 0:00:00]} 31. Ka1 {[%emt 0:00:00]} e4 {[%emt 0:00:00]} 32. fxe4 {[%emt 0:00:00]} Rg4 {[%emt 0:00:00]} 33. Qd6 {[%emt 0:00:00]} Rf2 {[%emt 0:07:00]} 34. Qxb6 {[%emt 0:00:00]} Rgxg2 {[%emt 0:00:00]} 35. exd5 {[%emt 0:00:00]} Qf7 {[%emt 0:00:00]} 36. Qd8+ {[%emt 0:00:00]} Ka7 {[%emt 0:00:00]} 37. Nc6+ {[%emt 0:00:00]} Bxc6 {[%emt 0:00:00]} 38. dxc6 {[%emt 0:00:00]} Rxb2 {[%emt 0:00:00]} 39. Rd7+ {[%emt 0:00:00]} Qxd7 {[%emt 0:00:00]} 40. Qxd7+ {[%emt 0:00:00]} Kb6 {[%emt 0:00:00]} 41. Qb7+ {[%emt 0:00:00]} Kc5 {[%emt 0:00:00]} 42. Qxa6 {[%emt 0:00:00]} 1-0